[Event "*** MasterClass Titled Tuesday Blitz"]
[Site "Chess.com"]
[Date "2017.12.05"]
[Round "4"]
[White "dawtonlms"]
[Black "walkingcreep"]
[Result "0-1"]
[WhiteElo "2235"]
[BlackElo "2404"]
[TimeControl "180+2"]
[EndTime "15:04:08 PST"]
[Termination "walkingcreep won by checkmate"]

1. e4 {[%clk 0:03:01.9]} 1... c5 {[%clk 0:03:00.3]} 2. Nf3 {[%clk 0:03:02.7]}
2... e6 {[%clk 0:03:01.9]} 3. d3 {[%clk 0:02:59.7]} 3... Nc6 {[%clk 0:03:02]} 4.
g3 {[%clk 0:03:00.6]} 4... Nf6 {[%clk 0:03:03]} 5. Bg2 {[%clk 0:03:02.1]} 5...
Be7 {[%clk 0:03:04.4]} 6. O-O {[%clk 0:03:03.6]} 6... O-O {[%clk 0:03:05.7]} 7.
Re1 {[%clk 0:03:05.1]} 7... d5 {[%clk 0:03:06.9]} 8. e5 {[%clk 0:03:05.2]} 8...
Ne8 {[%clk 0:03:08.1]} 9. Nbd2 {[%clk 0:03:06]} 9... Nc7 {[%clk 0:03:08.8]} 10.
Nf1 {[%clk 0:03:06.9]} 10... b5 {[%clk 0:03:09.8]} 11. h4 {[%clk 0:03:08]} 11...
Rb8 {[%clk 0:03:10]} 12. h5 {[%clk 0:03:08.4]} 12... b4 {[%clk 0:03:07.5]} 13.
N1h2 {[%clk 0:03:08.7]} 13... a5 {[%clk 0:03:08.2]} 14. Ng4 {[%clk 0:03:09.8]}
14... f5 {[%clk 0:03:00]} 15. exf6 {[%clk 0:03:09.7]} 15... gxf6 {[%clk
0:03:01.9]} 16. Bh6 {[%clk 0:03:00.7]} 16... Re8 {[%clk 0:02:58.8]} 17. Bd2
{[%clk 0:02:54]} 17... Kh8 {[%clk 0:02:57.5]} 18. Nh6 {[%clk 0:02:53.5]} 18...
Rf8 {[%clk 0:02:56.8]} 19. Nh4 {[%clk 0:02:43.5]} 19... f5 {[%clk 0:02:50.5]}
20. Ng6+ {[%clk 0:02:13.3]} 20... hxg6 {[%clk 0:02:49.2]} 21. hxg6 {[%clk
0:02:15.2]} 21... Kg7 {[%clk 0:02:36.8]} 22. Nf7 {[%clk 0:02:16.1]} 22... Rxf7
{[%clk 0:02:37.4]} 23. gxf7 {[%clk 0:02:17.2]} 23... Qh8 {[%clk 0:02:38]} 24. c4
{[%clk 0:02:09.5]} 24... Kxf7 {[%clk 0:02:28.2]} 25. cxd5 {[%clk 0:02:08.7]}
25... exd5 {[%clk 0:02:28]} 26. Bf4 {[%clk 0:02:05]} 26... Rb7 {[%clk 0:02:23]}
27. Bxc7 {[%clk 0:02:01.1]} 27... Rxc7 {[%clk 0:02:24.1]} 28. Bxd5+ {[%clk
0:02:02.2]} 28... Kf8 {[%clk 0:02:25.1]} 29. Qa4 {[%clk 0:01:11.5]} 29... Bd7
{[%clk 0:02:05.9]} 30. Qd1 {[%clk 0:01:01.1]} 30... Nd4 {[%clk 0:02:04.4]} 31.
Qd2 {[%clk 0:00:53.4]} 31... Bc6 {[%clk 0:02:02.9]} 32. Bxc6 {[%clk 0:00:53.7]}
32... Rxc6 {[%clk 0:02:03.9]} 33. Qf4 {[%clk 0:00:54.6]} 33... Rh6 {[%clk
0:01:58.2]} 34. Qb8+ {[%clk 0:00:48.5]} 34... Kf7 {[%clk 0:01:59.4]} 35. Qxh8
{[%clk 0:00:48.9]} 35... Rxh8 {[%clk 0:02:00.2]} 36. Red1 {[%clk 0:00:40.2]}
36... Bg5 {[%clk 0:01:50.9]} 37. Kg2 {[%clk 0:00:36.9]} 37... Nc2 {[%clk
0:01:44.7]} 38. Rab1 {[%clk 0:00:36.8]} 38... Re8 {[%clk 0:01:45.5]} 39. Rh1
{[%clk 0:00:31.5]} 39... Kg6 {[%clk 0:01:41.9]} 40. f4 {[%clk 0:00:26.9]} 40...
Bf6 {[%clk 0:01:40.6]} 41. Rh2 {[%clk 0:00:23.2]} 41... Ne3+ {[%clk 0:01:34.1]}
42. Kf3 {[%clk 0:00:23]} 42... Ng4 {[%clk 0:01:34.6]} 43. Re2 {[%clk 0:00:23.2]}
43... Rd8 {[%clk 0:01:34.7]} 44. Rd1 {[%clk 0:00:22.9]} 44... Kf7 {[%clk
0:01:35.9]} 45. b3 {[%clk 0:00:23.9]} 45... Bd4 {[%clk 0:01:35.2]} 46. Rde1
{[%clk 0:00:24.2]} 46... Bf6 {[%clk 0:01:32.1]} 47. Rd1 {[%clk 0:00:25.1]} 47...
Rh8 {[%clk 0:01:33]} 48. Rc1 {[%clk 0:00:21.4]} 48... Bd4 {[%clk 0:01:33.4]} 49.
Rce1 {[%clk 0:00:22.2]} 49... Rh3 {[%clk 0:01:31.7]} 50. Re7+ {[%clk 0:00:22.4]}
50... Kg6 {[%clk 0:01:33.1]} 51. R1e6+ {[%clk 0:00:23.2]} 51... Nf6 {[%clk
0:01:33.3]} 52. Rc7 {[%clk 0:00:22.3]} 52... Rh2 {[%clk 0:01:34.5]} 53. g4
{[%clk 0:00:22.4]} 53... fxg4+ {[%clk 0:01:34.4]} 54. Kg3 {[%clk 0:00:23.7]}
54... Rh3+ {[%clk 0:01:34.6]} 55. Kg2 {[%clk 0:00:24.7]} 55... Rxd3 {[%clk
0:01:34.4]} 56. Rd7 {[%clk 0:00:22.8]} 56... Rd2+ {[%clk 0:01:33]} 57. Kf1
{[%clk 0:00:23]} 57... Kf5 {[%clk 0:01:33.4]} 58. Rdd6 {[%clk 0:00:20]} 58...
Ne4 {[%clk 0:01:26.5]} 59. Ra6 {[%clk 0:00:19.2]} 59... g3 {[%clk 0:01:25]} 60.
Rg6 {[%clk 0:00:15.8]} 60... Kxf4 {[%clk 0:01:22.2]} 61. Ra8 {[%clk 0:00:15.5]}
61... Rf2+ {[%clk 0:01:19.5]} 62. Ke1 {[%clk 0:00:16.4]} 62... Bc3+ {[%clk
0:01:19.5]} 63. Kd1 {[%clk 0:00:17.3]} 63... g2 {[%clk 0:01:17.7]} 64. Rf8+
{[%clk 0:00:17.7]} 64... Ke3 {[%clk 0:01:19]} 65. Rfg8 {[%clk 0:00:16.9]} 65...
Kd3 {[%clk 0:01:13.4]} 66. Kc1 {[%clk 0:00:15.9]} 66... Rf1# {[%clk 0:01:13.5]}
0-1

[Event "*** MasterClass Titled Tuesday Blitz"]
[Site "Chess.com"]
[Date "2017.12.05"]
[Round "4"]
[White "Khamrakulov_Djurabek"]
[Black "Markov_Mikhail"]
[Result "1-0"]
[WhiteElo "2689"]
[BlackElo "2608"]
[TimeControl "180+2"]
[EndTime "15:04:11 PST"]
[Termination "Khamrakulov_Djurabek won by resignation"]

1. e4 {[%clk 0:03:01.9]} 1... c5 {[%clk 0:02:59.1]} 2. c3 {[%clk 0:03:02.4]}
2... Nf6 {[%clk 0:02:59.6]} 3. e5 {[%clk 0:03:03.4]} 3... Nd5 {[%clk 0:03:00.8]}
4. d4 {[%clk 0:03:05]} 4... cxd4 {[%clk 0:03:02.2]} 5. Nf3 {[%clk 0:03:06.6]}
5... d6 {[%clk 0:03:03]} 6. cxd4 {[%clk 0:03:07.7]} 6... Nc6 {[%clk 0:03:03.4]}
7. Bc4 {[%clk 0:03:08.4]} 7... dxe5 {[%clk 0:03:00.2]} 8. dxe5 {[%clk 0:03:04]}
8... Ndb4 {[%clk 0:03:00.8]} 9. Qe2 {[%clk 0:02:28.7]} 9... e6 {[%clk
0:01:19.3]} 10. O-O {[%clk 0:02:28.9]} 10... a6 {[%clk 0:01:20.6]} 11. Rd1
{[%clk 0:02:27.6]} 11... Qc7 {[%clk 0:01:12.1]} 12. a3 {[%clk 0:01:48.4]} 12...
Nd5 {[%clk 0:01:12.7]} 13. Bxd5 {[%clk 0:01:45.2]} 13... exd5 {[%clk 0:01:14.6]}
14. Nc3 {[%clk 0:01:46.5]} 14... Be6 {[%clk 0:01:11.3]} 15. Nxd5 {[%clk
0:01:44.7]} 15... Bxd5 {[%clk 0:01:09]} 16. Rxd5 {[%clk 0:01:46.2]} 16... Be7
{[%clk 0:01:10.2]} 17. Bg5 {[%clk 0:01:41.1]} 17... O-O {[%clk 0:01:07]} 18.
Rad1 {[%clk 0:01:41.6]} 18... Rad8 {[%clk 0:00:52.6]} 19. h4 {[%clk 0:01:27.9]}
19... h6 {[%clk 0:00:49.1]} 20. Bxe7 {[%clk 0:01:22]} 20... Qxe7 {[%clk
0:00:46.9]} 21. Qe4 {[%clk 0:01:15.6]} 21... Rxd5 {[%clk 0:00:46.7]} 22. Rxd5
{[%clk 0:01:15.6]} 22... Rd8 {[%clk 0:00:47.1]} 23. Qd3 {[%clk 0:01:15.5]} 23...
Rxd5 {[%clk 0:00:45.8]} 24. Qxd5 {[%clk 0:01:17]} 24... Nd8 {[%clk 0:00:43.8]}
25. g3 {[%clk 0:01:00.5]} 25... Ne6 {[%clk 0:00:44.7]} 26. Nd2 {[%clk
0:00:49.3]} 26... Qc7 {[%clk 0:00:39.4]} 27. Nc4 {[%clk 0:00:49.9]} 27... b5
{[%clk 0:00:40.1]} 28. Nd6 {[%clk 0:00:49.3]} 28... Qc1+ {[%clk 0:00:25.3]} 29.
Kg2 {[%clk 0:00:49.6]} 29... Qxb2 {[%clk 0:00:26.8]} 30. Qa8+ {[%clk 0:00:48.1]}
30... Kh7 {[%clk 0:00:28]} 31. Nxf7 {[%clk 0:00:46.5]} 31... Qe2 {[%clk
0:00:15.4]} 32. Qf3 {[%clk 0:00:27.8]} 32... Qxf3+ {[%clk 0:00:11.7]} 33. Kxf3
{[%clk 0:00:27.9]} 33... a5 {[%clk 0:00:12.7]} 34. Ke4 {[%clk 0:00:25.8]} 34...
b4 {[%clk 0:00:13.7]} 35. axb4 {[%clk 0:00:26]} 35... axb4 {[%clk 0:00:15.6]}
36. Kd3 {[%clk 0:00:25.9]} 36... b3 {[%clk 0:00:16.6]} 37. Kc3 {[%clk
0:00:26.2]} 37... Nc5 {[%clk 0:00:18.2]} 38. Nd6 {[%clk 0:00:26.7]} 38... g5
{[%clk 0:00:16.7]} 39. f4 {[%clk 0:00:21.7]} 39... Kg7 {[%clk 0:00:08.5]} 40. f5
{[%clk 0:00:20.3]} 40... g4 {[%clk 0:00:09.6]} 41. f6+ {[%clk 0:00:19]} 41...
Kg6 {[%clk 0:00:09.3]} 42. Nc4 {[%clk 0:00:14.8]} 42... Kf7 {[%clk 0:00:08.3]}
43. Ne3 {[%clk 0:00:14.8]} 43... h5 {[%clk 0:00:09]} 44. Nd5 {[%clk 0:00:14.1]}
44... Ke6 {[%clk 0:00:10]} 45. Nf4+ {[%clk 0:00:14.7]} 45... Kxe5 {[%clk
0:00:09.2]} 46. Nd3+ {[%clk 0:00:14.5]} 46... Kxf6 {[%clk 0:00:07.4]} 47. Nxc5
{[%clk 0:00:15.1]} 47... Ke5 {[%clk 0:00:08.8]} 48. Nd3+ {[%clk 0:00:13.6]}
48... Ke4 {[%clk 0:00:09.4]} 49. Nf4 {[%clk 0:00:14.6]} 1-0

[Event "*** MasterClass Titled Tuesday Blitz"]
[Site "Chess.com"]
[Date "2017.12.05"]
[Round "4"]
[White "roncataroja"]
[Black "Blitz-rider"]
[Result "1-0"]
[WhiteElo "1427"]
[BlackElo "1983"]
[TimeControl "180+2"]
[EndTime "15:04:22 PST"]
[Termination "roncataroja won by checkmate"]

1. e3 {[%clk 0:02:35.5]} 1... c5 {[%clk 0:02:57.4]} 2. f4 {[%clk 0:02:36.1]}
2... d5 {[%clk 0:02:56.7]} 3. Nf3 {[%clk 0:02:34.7]} 3... Nc6 {[%clk 0:02:57.2]}
4. d4 {[%clk 0:02:35.3]} 4... e6 {[%clk 0:02:54.6]} 5. Bb5 {[%clk 0:02:33.9]}
5... Bd7 {[%clk 0:02:55.2]} 6. O-O {[%clk 0:02:32.5]} 6... Nf6 {[%clk
0:02:54.3]} 7. Nbd2 {[%clk 0:02:27.8]} 7... Bd6 {[%clk 0:02:52.3]} 8. Bxc6
{[%clk 0:02:28.1]} 8... Bxc6 {[%clk 0:02:52.1]} 9. Ne5 {[%clk 0:02:28.8]} 9...
Qc7 {[%clk 0:02:44.6]} 10. b3 {[%clk 0:02:22.6]} 10... O-O {[%clk 0:02:43.2]}
11. Bb2 {[%clk 0:02:23.1]} 11... Nd7 {[%clk 0:02:05.5]} 12. h3 {[%clk
0:02:13.3]} 12... Rac8 {[%clk 0:01:55.7]} 13. Rc1 {[%clk 0:02:12.5]} 13... Bb5
{[%clk 0:01:42.5]} 14. Rf3 {[%clk 0:02:11.7]} 14... f6 {[%clk 0:01:36.8]} 15.
Nxd7 {[%clk 0:02:05.4]} 15... Bxd7 {[%clk 0:01:25.1]} 16. Qe1 {[%clk 0:01:54.6]}
16... cxd4 {[%clk 0:01:04.5]} 17. Bxd4 {[%clk 0:01:52.5]} 17... e5 {[%clk
0:01:05.2]} 18. fxe5 {[%clk 0:01:51.1]} 18... fxe5 {[%clk 0:01:07.1]} 19. Rxf8+
{[%clk 0:01:51.3]} 19... Rxf8 {[%clk 0:01:07.4]} 20. Bb2 {[%clk 0:01:50.1]}
20... Bc5 {[%clk 0:01:00]} 21. Nf3 {[%clk 0:01:48.1]} 21... Bd6 {[%clk
0:00:37.8]} 22. c4 {[%clk 0:01:45.8]} 22... dxc4 {[%clk 0:00:22.3]} 23. Rxc4
{[%clk 0:01:45.9]} 23... Bc6 {[%clk 0:00:21.2]} 24. Ng5 {[%clk 0:01:40.4]} 24...
Qe7 {[%clk 0:00:17.7]} 25. Rg4 {[%clk 0:01:26.6]} 25... Bd7 {[%clk 0:00:15.5]}
26. Rg3 {[%clk 0:01:21]} 26... e4 {[%clk 0:00:16.2]} 27. Ne6 {[%clk 0:01:14]}
27... Bxe6 {[%clk 0:00:09.6]} 28. Rxg7+ {[%clk 0:01:13.2]} 28... Qxg7 {[%clk
0:00:10.6]} 29. Bxg7 {[%clk 0:01:12.3]} 29... Kxg7 {[%clk 0:00:12.5]} 30. Qc3+
{[%clk 0:01:12.5]} 30... Kg8 {[%clk 0:00:10.9]} 31. Qd4 {[%clk 0:01:11.5]} 31...
Bb8 {[%clk 0:00:08.2]} 32. Qxe4 {[%clk 0:01:11.1]} 32... Bf5 {[%clk 0:00:09.4]}
33. Qxb7 {[%clk 0:01:10.3]} 33... Bc2 {[%clk 0:00:07.5]} 34. g4 {[%clk
0:01:06.4]} 34... Bd3 {[%clk 0:00:08.4]} 35. Qd5+ {[%clk 0:01:06.3]} 35... Kh8
{[%clk 0:00:09.2]} 36. Qxd3 {[%clk 0:01:04.9]} 36... Re8 {[%clk 0:00:09.3]} 37.
Qd4+ {[%clk 0:01:04.3]} 37... Kg8 {[%clk 0:00:08.7]} 38. e4 {[%clk 0:01:05.2]}
38... Be5 {[%clk 0:00:09.1]} 39. Qd5+ {[%clk 0:01:06]} 39... Kh8 {[%clk
0:00:09.6]} 40. h4 {[%clk 0:01:06.5]} 40... Bg7 {[%clk 0:00:09.3]} 41. h5 {[%clk
0:01:06.8]} 41... h6 {[%clk 0:00:10.4]} 42. Kg2 {[%clk 0:01:05.7]} 42... Bf6
{[%clk 0:00:11.8]} 43. Kf3 {[%clk 0:01:03.9]} 43... Kg7 {[%clk 0:00:13.1]} 44.
Qd7+ {[%clk 0:01:02.8]} 44... Re7 {[%clk 0:00:14.6]} 45. Qd5 {[%clk 0:01:01.8]}
45... Bg5 {[%clk 0:00:15.9]} 46. e5 {[%clk 0:01:01.2]} 46... Rf7+ {[%clk
0:00:16.1]} 47. Ke2 {[%clk 0:00:59.1]} 47... Re7 {[%clk 0:00:17.3]} 48. e6
{[%clk 0:00:59.5]} 48... Bf6 {[%clk 0:00:18.3]} 49. Kf3 {[%clk 0:00:58.9]} 49...
Bg5 {[%clk 0:00:19.4]} 50. Ke4 {[%clk 0:00:59.6]} 50... Bf6 {[%clk 0:00:20.4]}
51. Kf5 {[%clk 0:01:00.4]} 51... Bg5 {[%clk 0:00:21.5]} 52. Qe5+ {[%clk
0:01:00.3]} 52... Bf6 {[%clk 0:00:22.4]} 53. Qxf6+ {[%clk 0:01:00.7]} 53... Kg8
{[%clk 0:00:23.8]} 54. Qxe7 {[%clk 0:01:01.5]} 54... a5 {[%clk 0:00:25.4]} 55.
Kg6 {[%clk 0:01:02]} 55... a4 {[%clk 0:00:26.9]} 56. Qg7# {[%clk 0:01:02.4]} 1-0

[Event "*** MasterClass Titled Tuesday Blitz"]
[Site "Chess.com"]
[Date "2017.12.05"]
[Round "4"]
[White "ZABDIELBLANCO"]
[Black "fredjust"]
[Result "0-1"]
[WhiteElo "1235"]
[BlackElo "1615"]
[TimeControl "180+2"]
[EndTime "15:04:28 PST"]
[Termination "fredjust won by resignation"]

1. d4 {[%clk 0:03:01.9]} 1... Nf6 {[%clk 0:02:59.8]} 2. Bf4 {[%clk 0:02:59.7]}
2... g6 {[%clk 0:02:55.4]} 3. Nc3 {[%clk 0:02:53.5]} 3... Bg7 {[%clk 0:02:55.9]}
4. e3 {[%clk 0:02:54.1]} 4... d6 {[%clk 0:02:56.9]} 5. h3 {[%clk 0:02:55.3]}
5... O-O {[%clk 0:02:53.8]} 6. Nf3 {[%clk 0:02:55.3]} 6... b6 {[%clk 0:02:48.9]}
7. Be2 {[%clk 0:02:55]} 7... Bb7 {[%clk 0:02:48.4]} 8. Bh2 {[%clk 0:02:55.7]}
8... c5 {[%clk 0:02:46]} 9. d5 {[%clk 0:02:53.2]} 9... Na6 {[%clk 0:02:22.2]}
10. a3 {[%clk 0:02:50.7]} 10... Nc7 {[%clk 0:02:21.2]} 11. e4 {[%clk 0:02:51.2]}
11... Re8 {[%clk 0:02:03.1]} 12. O-O {[%clk 0:02:51]} 12... a6 {[%clk
0:01:51.7]} 13. Rb1 {[%clk 0:02:51.4]} 13... b5 {[%clk 0:01:51.6]} 14. b4 {[%clk
0:02:51.9]} 14... c4 {[%clk 0:01:39.6]} 15. Re1 {[%clk 0:02:46.6]} 15... Nd7
{[%clk 0:01:34]} 16. Bf1 {[%clk 0:02:47]} 16... Bxc3 {[%clk 0:01:33.9]} 17. Re3
{[%clk 0:02:44]} 17... Bg7 {[%clk 0:01:31.4]} 18. c3 {[%clk 0:02:38.8]} 18...
Nf6 {[%clk 0:01:24.5]} 19. Qc2 {[%clk 0:02:35.6]} 19... e5 {[%clk 0:01:12.7]}
20. Nd2 {[%clk 0:02:30.4]} 20... Rf8 {[%clk 0:01:00.6]} 21. f4 {[%clk
0:02:31.1]} 21... Nh5 {[%clk 0:00:53.4]} 22. fxe5 {[%clk 0:02:27]} 22... dxe5
{[%clk 0:00:38.4]} 23. Be2 {[%clk 0:02:26.3]} 23... Nf6 {[%clk 0:00:34.9]} 24.
Bg4 {[%clk 0:02:24.9]} 24... Nfxd5 {[%clk 0:00:29.7]} 25. exd5 {[%clk 0:02:18]}
25... Nxd5 {[%clk 0:00:21.3]} 26. Ree1 {[%clk 0:02:09.4]} 26... Nf4 {[%clk
0:00:21.3]} 27. Bxf4 {[%clk 0:02:05]} 27... exf4 {[%clk 0:00:22.3]} 28. Bf3
{[%clk 0:02:03.7]} 28... Bxf3 {[%clk 0:00:22.3]} 29. Nxf3 {[%clk 0:02:04.7]}
29... Qd3 {[%clk 0:00:21.3]} 30. Rbc1 {[%clk 0:01:55.9]} 30... Qxc2 {[%clk
0:00:20.8]} 31. Rxc2 {[%clk 0:01:57.1]} 31... Rad8 {[%clk 0:00:21.1]} 32. Kf2
{[%clk 0:01:54.8]} 32... Rd3 {[%clk 0:00:21.7]} 33. Re4 {[%clk 0:01:52.6]} 33...
Rxc3 {[%clk 0:00:20.6]} 34. Rxc3 {[%clk 0:01:53.2]} 34... Bxc3 {[%clk
0:00:21.3]} 35. Rxf4 {[%clk 0:01:54.7]} 35... Bg7 {[%clk 0:00:20.1]} 36. Re4
{[%clk 0:01:53.7]} 36... Rc8 {[%clk 0:00:19.4]} 37. Ne1 {[%clk 0:01:47.1]} 37...
c3 {[%clk 0:00:19.8]} 38. Nc2 {[%clk 0:01:48.1]} 38... Kf8 {[%clk 0:00:18.1]}
39. Ke3 {[%clk 0:01:47.6]} 39... Re8 {[%clk 0:00:18.3]} 40. Rxe8+ {[%clk
0:01:47.7]} 40... Kxe8 {[%clk 0:00:19.1]} 41. Ke4 {[%clk 0:01:48]} 41... f5+
{[%clk 0:00:19]} 42. Kd5 {[%clk 0:01:48.4]} 42... Kd7 {[%clk 0:00:20.1]} 43. Kc5
{[%clk 0:01:39.9]} 43... Kc7 {[%clk 0:00:20.2]} 44. Kd5 {[%clk 0:01:40.5]} 44...
h5 {[%clk 0:00:20.5]} 45. h4 {[%clk 0:01:39.1]} 45... Kd7 {[%clk 0:00:19.2]} 46.
Kc5 {[%clk 0:01:37.2]} 46... Bf6 {[%clk 0:00:19.7]} 47. g3 {[%clk 0:01:37.7]}
47... f4 {[%clk 0:00:20]} 48. gxf4 {[%clk 0:01:37.2]} 48... Bxh4 {[%clk
0:00:20.9]} 49. Kb6 {[%clk 0:01:38.3]} 49... Ke6 {[%clk 0:00:19.7]} 50. Kxa6
{[%clk 0:01:38.7]} 50... Bd8 {[%clk 0:00:21.2]} 51. Kxb5 {[%clk 0:01:39.4]}
51... h4 {[%clk 0:00:22.2]} 52. Kc4 {[%clk 0:01:36.6]} 52... h3 {[%clk
0:00:23.4]} 53. Kxc3 {[%clk 0:01:32.1]} 53... h2 {[%clk 0:00:23.5]} 54. Nd4+
{[%clk 0:01:32.8]} 54... Kf6 {[%clk 0:00:21.9]} 55. a4 {[%clk 0:01:25.1]} 55...
h1=Q {[%clk 0:00:22.6]} 56. b5 {[%clk 0:01:26.4]} 56... Qa8 {[%clk 0:00:22.4]}
57. Nb3 {[%clk 0:01:23.3]} 57... Qxa4 {[%clk 0:00:22.5]} 58. b6 {[%clk
0:01:22.9]} 58... Qb5 {[%clk 0:00:20.4]} 59. Nd4 {[%clk 0:01:21.4]} 59... Qxb6
{[%clk 0:00:21]} 60. Kd3 {[%clk 0:01:22.8]} 60... Qd6 {[%clk 0:00:19.9]} 61. Ke3
{[%clk 0:01:21]} 61... Bb6 {[%clk 0:00:19.8]} 62. Ke4 {[%clk 0:01:21.9]} 62...
Qxd4+ {[%clk 0:00:19.8]} 63. Kf3 {[%clk 0:01:23.8]} 63... Qd5+ {[%clk
0:00:19.3]} 64. Ke2 {[%clk 0:01:25]} 64... Qf5 {[%clk 0:00:19.8]} 65. Kd2 {[%clk
0:01:25.6]} 65... Qxf4+ {[%clk 0:00:20.7]} 66. Kd3 {[%clk 0:01:26.6]} 66... g5
{[%clk 0:00:22]} 67. Ke2 {[%clk 0:01:27.5]} 67... g4 {[%clk 0:00:22]} 68. Kd3
{[%clk 0:01:29.4]} 68... g3 {[%clk 0:00:23.2]} 69. Ke2 {[%clk 0:01:31.3]} 69...
g2 {[%clk 0:00:23.8]} 70. Kd3 {[%clk 0:01:33.1]} 70... g1=Q {[%clk 0:00:23]} 71.
Kc3 {[%clk 0:01:32.2]} 71... Qc5+ {[%clk 0:00:22.3]} 72. Kd3 {[%clk 0:01:33.4]}
72... Qfd4+ {[%clk 0:00:22.7]} 73. Ke2 {[%clk 0:01:34.3]} 73... Qce5+ {[%clk
0:00:24.1]} 74. Kf3 {[%clk 0:01:35]} 74... Qdf4+ {[%clk 0:00:25.5]} 75. Kg2
{[%clk 0:01:36]} 75... Qeg5+ {[%clk 0:00:27]} 0-1

[Event "*** MasterClass Titled Tuesday Blitz"]
[Site "Chess.com"]
[Date "2017.12.05"]
[Round "4"]
[White "chessking2151"]
[Black "QuintilianoR"]
[Result "0-1"]
[WhiteElo "2346"]
[BlackElo "2521"]
[TimeControl "180+2"]
[EndTime "15:04:31 PST"]
[Termination "QuintilianoR won by resignation"]

1. e4 {[%clk 0:03:01.9]} 1... c5 {[%clk 0:02:52.2]} 2. Nf3 {[%clk 0:03:01.4]}
2... d6 {[%clk 0:02:53.2]} 3. d4 {[%clk 0:03:00.4]} 3... cxd4 {[%clk 0:02:55.1]}
4. Nxd4 {[%clk 0:03:02.3]} 4... Nf6 {[%clk 0:02:56.6]} 5. Nc3 {[%clk 0:03:03.3]}
5... g6 {[%clk 0:02:58.2]} 6. Be3 {[%clk 0:03:03.8]} 6... Bg7 {[%clk 0:02:59.6]}
7. f3 {[%clk 0:03:02.5]} 7... O-O {[%clk 0:03:00.5]} 8. Qd2 {[%clk 0:03:03.9]}
8... Nc6 {[%clk 0:03:02.1]} 9. O-O-O {[%clk 0:03:05.1]} 9... d5 {[%clk
0:03:03.4]} 10. exd5 {[%clk 0:03:05]} 10... Nxd5 {[%clk 0:03:05.3]} 11. Nxc6
{[%clk 0:03:06.2]} 11... bxc6 {[%clk 0:03:07.1]} 12. Bd4 {[%clk 0:03:07.5]}
12... Nxc3 {[%clk 0:03:08.7]} 13. Qxc3 {[%clk 0:03:07.9]} 13... Bh6+ {[%clk
0:03:10.2]} 14. Be3 {[%clk 0:03:09.4]} 14... Bxe3+ {[%clk 0:03:11.8]} 15. Qxe3
{[%clk 0:03:11.3]} 15... Qb6 {[%clk 0:03:13]} 16. Qxe7 {[%clk 0:03:12.6]} 16...
Be6 {[%clk 0:03:13.6]} 17. Qa3 {[%clk 0:03:11.2]} 17... Rfd8 {[%clk 0:03:14.5]}
18. Bd3 {[%clk 0:02:45.6]} 18... Rd5 {[%clk 0:03:14]} 19. Rhe1 {[%clk
0:02:19.3]} 19... Ra5 {[%clk 0:03:05.7]} 20. Qc3 {[%clk 0:02:17.7]} 20... Rxa2
{[%clk 0:02:51.7]} 21. b3 {[%clk 0:02:15.6]} 21... Ra5 {[%clk 0:02:33.2]} 22.
Kb2 {[%clk 0:02:12.2]} 22... Rc5 {[%clk 0:02:30.3]} 23. Qf6 {[%clk 0:02:10.1]}
23... Re8 {[%clk 0:01:59.1]} 24. f4 {[%clk 0:01:52.8]} 24... Qd8 {[%clk
0:01:47.4]} 25. Qxd8 {[%clk 0:01:49.1]} 25... Rxd8 {[%clk 0:01:49.3]} 26. Ra1
{[%clk 0:01:49.5]} 26... a5 {[%clk 0:01:46]} 27. g3 {[%clk 0:01:46.7]} 27... Rb8
{[%clk 0:01:41.8]} 28. Ra4 {[%clk 0:01:41.5]} 28... Rb4 {[%clk 0:01:22.1]} 29.
Re4 {[%clk 0:01:12.5]} 29... Rxa4 {[%clk 0:01:20]} 30. Rxa4 {[%clk 0:01:13.2]}
30... Kf8 {[%clk 0:01:17.1]} 31. Be4 {[%clk 0:01:11.3]} 31... Ke7 {[%clk
0:01:06.3]} 32. c4 {[%clk 0:01:06]} 32... Kd6 {[%clk 0:01:06.7]} 33. Kc3 {[%clk
0:01:05.4]} 33... Bf5 {[%clk 0:00:53.2]} 34. Bf3 {[%clk 0:01:02.8]} 34... f6
{[%clk 0:00:49.6]} 35. Ra2 {[%clk 0:00:55.4]} 35... Bd7 {[%clk 0:00:49.6]} 36.
Kd4 {[%clk 0:00:45.4]} 36... g5 {[%clk 0:00:38]} 37. fxg5 {[%clk 0:00:29.1]}
37... Rxg5 {[%clk 0:00:35.5]} 38. Rd2 {[%clk 0:00:29.7]} 38... Kc7 {[%clk
0:00:35.2]} 39. Ke3 {[%clk 0:00:29.3]} 39... Re5+ {[%clk 0:00:33.4]} 40. Kf2
{[%clk 0:00:30.7]} 40... c5 {[%clk 0:00:32]} 41. Bd5 {[%clk 0:00:30.9]} 41... a4
{[%clk 0:00:31.9]} 42. bxa4 {[%clk 0:00:32]} 42... Bxa4 {[%clk 0:00:33.8]} 43.
Ra2 {[%clk 0:00:33.7]} 43... Bd7 {[%clk 0:00:32.5]} 44. Ra7+ {[%clk 0:00:34.4]}
44... Kd6 {[%clk 0:00:33]} 45. Ra6+ {[%clk 0:00:34]} 45... Ke7 {[%clk
0:00:34.6]} 46. Ra7 {[%clk 0:00:32.3]} 46... Kd6 {[%clk 0:00:35.1]} 47. Ra8
{[%clk 0:00:31.4]} 47... Rf5+ {[%clk 0:00:27.8]} 48. Ke3 {[%clk 0:00:23.5]}
48... Re5+ {[%clk 0:00:28.6]} 49. Kd2 {[%clk 0:00:22.3]} 49... Bg4 {[%clk
0:00:24.8]} 50. Rd8+ {[%clk 0:00:21.8]} 50... Ke7 {[%clk 0:00:25.8]} 51. Rh8
{[%clk 0:00:22.1]} 51... Re2+ {[%clk 0:00:25.8]} 52. Kd3 {[%clk 0:00:22]} 52...
Rxh2 {[%clk 0:00:27.7]} 53. Be4 {[%clk 0:00:22]} 53... f5 {[%clk 0:00:23.1]} 54.
Bd5 {[%clk 0:00:22]} 54... Rh3 {[%clk 0:00:24.4]} 55. Kd2 {[%clk 0:00:21.3]}
55... h5 {[%clk 0:00:24.7]} 56. Rh7+ {[%clk 0:00:21.5]} 56... Kd6 {[%clk
0:00:25.5]} 57. Rh6+ {[%clk 0:00:21.5]} 57... Ke5 {[%clk 0:00:25.9]} 58. Bf7
{[%clk 0:00:19.7]} 58... Rxg3 {[%clk 0:00:25.5]} 59. Re6+ {[%clk 0:00:20.4]}
59... Kf4 {[%clk 0:00:26.3]} 60. Rc6 {[%clk 0:00:19.6]} 60... h4 {[%clk
0:00:27.5]} 61. Rxc5 {[%clk 0:00:20.2]} 61... h3 {[%clk 0:00:28.2]} 62. Rc6
{[%clk 0:00:21.6]} 62... h2 {[%clk 0:00:28.9]} 63. Rh6 {[%clk 0:00:22.8]} 63...
Rh3 {[%clk 0:00:28.7]} 64. Rh4 {[%clk 0:00:23.9]} 64... Rxh4 {[%clk 0:00:29.5]}
0-1